bitfinex/quotes_ETHUSD_20250720
["timestamp","ask_amount","ask_price","bid_price","bid_amount"]
[1752998929531,0.002,3678.0,3677.9,5.97464348]
[1752998929860,0.002,3678.0,3677.9,5.94745406]
[1752998930470,0.002,3678.0,3677.9,2.85414287]
[1752998935676,0.4699,3678.0,3677.9,2.85414287]
[1752998936178,0.002,3678.0,3677.9,2.85414287]
[1752998939159,1.2049,3678.0,3677.9,0.1352]
[1752998940883,0.732,3678.0,3677.9,0.1352]
[1752998942065,1.2049,3678.0,3677.9,0.1352]
[1752998942990,3.92376895,3678.0,3677.8,0.001]
[1752998943190,0.4729,3677.9,3677.8,0.001]
[1752998943410,3.92184287,3677.9,3677.8,0.001]
[1752998943551,4.05704287,3677.9,3677.8,0.001]
[1752998944079,8.26504287,3677.9,3677.8,0.001]
[1752998944461,4.05704287,3677.9,3677.8,0.001]
[1752998944854,11.26504287,3677.9,3677.8,0.001]
[1752998945072,12.06946029,3677.9,3677.8,0.001]
[1752998947089,7.86146029,3677.9,3677.8,0.001]
[1752998947284,12.06946029,3677.9,3677.8,0.001]
[1752998948107,11.81504287,3677.9,3677.8,0.001]
[1752998950177,7.60704287,3677.9,3677.8,0.001]
[1752998950390,11.81504287,3677.9,3677.8,0.001]
[1752998951983,7.60704287,3677.9,3677.8,0.001]
[1752998952336,11.81504287,3677.9,3677.8,0.001]
[1752998952811,11.81404287,3677.9,3677.8,0.001]
[1752998953189,7.60704287,3677.9,3677.8,0.001]
[1752998953389,0.8652,3677.9,3677.8,0.001]
[1752998953629,4.3422,3677.9,3677.8,0.001]
[1752998954289,4.8151,3677.9,3677.8,0.001]
[1752998954495,5.0722,3677.9,3677.8,0.001]
[1752998954704,8.26404287,3677.9,3677.8,0.001]
[1752998956329,0.8652,3677.9,3677.8,0.001]
[1752998956495,5.0722,3677.9,3677.8,0.001]
[1752998956684,0.8652,3677.9,3677.8,0.001]
[1752998957022,0.1352,3677.9,3677.8,0.001]
[1752998957206,4.3422,3677.9,3677.8,0.001]
[1752998957391,4.3412,3677.9,3677.8,0.001]
[1752998957782,0.1352,3677.9,3677.8,0.001]
[1752998958086,4.3412,3677.9,3677.8,0.001]
[1752998958282,4.206,3677.9,3677.8,2.7200168]
[1752998958479,0.002,3678.0,3677.9,2.71894287]
[1752998958708,0.002,3678.0,3677.9,3.18704287]
[1752998958904,0.002,3678.0,3677.9,3.32224287]
[1752998959224,0.002,3678.0,3677.9,2.85414287]
[1752998960383,0.002,3678.0,3677.9,3.32224287]
[1752998960585,0.002,3678.0,3677.9,4.06734681]
[1752998960816,0.002,3678.0,3677.9,4.82014681]
[1752998964392,0.002,3678.0,3677.9,7.82014681]
[1752998966894,0.002,3678.0,3677.9,4.35204681]
[1752998967133,0.002,3678.0,3677.9,4.82014681]
[1752998967341,0.002,3678.0,3677.9,9.02414681]
[1752998968016,0.002,3678.0,3677.9,12.12036464]
[1752998968233,0.002,3678.0,3677.9,9.02414681]
[1752998968928,0.002,3678.0,3677.9,12.02414681]
[1752998970135,1e-08,3678.0,3677.9,12.02414681]
[1752998971132,0.002,3678.2,3677.9,12.02414681]
[1752998971133,1e-08,3678.2,3678.1,9.60211286]
[1752998971293,1e-08,3678.2,3678.1,11.38955883]
[1752998971498,1e-08,3678.2,3678.1,11.52475883]
[1752998971728,1e-08,3678.2,3678.1,11.99365883]
[1752998972731,0.002,3678.7,3678.6,3.50552548]
[1752998972732,1e-08,3678.7,3678.6,3.50552548]
[1752998972901,1e-08,3678.7,3678.6,11.33093687]
[1752998973101,1e-08,3678.7,3678.6,11.93503687]
[1752998984359,1e-08,3678.7,3678.6,11.46613687]
[1752998984813,1e-08,3678.7,3678.6,11.93503687]
[1752998992867,1e-08,3678.8,3678.7,5.71835159]
[1752998993168,1e-08,3678.8,3678.7,14.01914717]
[1752998993374,1e-08,3678.8,3678.7,13.99196366]
[1752998993779,1e-08,3678.8,3678.7,9.33196367]
[1752998997766,1e-08,3678.8,3678.7,8.06516367]
[1752998997971,1e-08,3678.8,3678.7,6.91435159]
[1752998998173,1e-08,3678.8,3678.7,9.91435159]
[1752998998485,1e-08,3678.8,3678.7,6.91435159]
[1752998998680,1e-08,3678.8,3678.7,14.57435158]
[1752999000584,1e-08,3678.8,3678.7,9.91435159]
[1752999001497,0.43160001,3678.8,3678.7,9.91435159]
[1752999002661,1e-08,3678.8,3678.7,9.91435159]
[1752999003363,1e-08,3678.8,3678.7,12.45145087]
[1752999003969,1e-08,3678.8,3678.7,15.5476687]
[1752999016782,1e-08,3678.8,3678.7,5.71835159]
[1752999017004,0.43160001,3678.8,3678.7,9.91035159]
[1752999017385,0.43160001,3678.8,3678.7,6.91035159]
[1752999017693,0.43160001,3678.8,3678.7,5.71835159]
[1752999017893,0.43160001,3678.8,3678.7,9.91035159]
[1752999018876,0.43160001,3678.8,3678.7,5.71835159]
[1752999019072,0.43160001,3678.8,3678.7,9.91035159]
[1752999021404,0.43160001,3678.8,3678.7,6.91035159]
[1752999022173,1e-08,3678.8,3678.7,6.91035159]
[1752999022676,1e-08,3678.8,3678.7,7.35125159]
[1752999023275,1e-08,3678.8,3678.7,6.91035159]
[1752999024087,1e-08,3678.8,3678.7,2.71835159]
[1752999024424,1e-08,3678.8,3678.7,6.90935159]
[1752999027101,1e-08,3678.8,3678.7,2.71835159]
[1752999027424,1e-08,3678.8,3678.7,6.90835159]
[1752999028220,1e-08,3678.8,3678.7,11.56835158]
[1752999036135,1e-08,3678.8,3678.7,7.37835158]
[1752999036324,0.43970001,3678.8,3678.6,0.1362]
[1752999036529,0.73,3678.7,3678.6,0.1362]
[1752999037009,1.1697,3678.7,3678.6,0.1362]
[1752999037209,1.1697,3678.7,3678.6,0.001]
[1752999039940,0.73,3678.7,3678.6,2.71942548]
[1752999040307,1e-08,3678.8,3678.7,2.71835159]
[1752999041439,0.43970001,3678.8,3678.7,2.71835159]
[1752999043739,1e-08,3678.8,3678.7,2.71835159]
[1752999046346,1e-08,3678.8,3678.7,3.73899562]
[1752999047106,1e-08,3678.8,3678.7,2.71835159]
[1752999047311,0.43970001,3678.8,3678.6,2.85460472]
[1752999047514,0.4397,3678.7,3678.6,2.85460472]
[1752999047915,1.1697,3678.7,3678.6,0.001]
[1752999051844,0.73,3678.7,3678.6,0.001]
[1752999052216,1.1697,3678.7,3678.6,0.001]
[1752999057251,0.4397,3678.7,3678.6,0.001]
[1752999058644,1e-08,3678.8,3678.6,0.001]
[1752999058847,1e-08,3678.8,3678.6,2.71940912]
[1752999059063,1e-08,3678.8,3678.7,3.28895159]
[1752999059436,1e-08,3678.8,3678.7,2.85355159]
[1752999061476,1e-08,3678.8,3678.7,0.1352]
[1752999061653,0.45300001,3678.8,3678.7,0.1352]
[1752999062264,1e-08,3678.8,3678.7,0.1352]
[1752999062465,0.45300001,3678.8,3678.7,0.1352]
[1752999062981,0.45300001,3678.8,3678.7,2.85355159]
[1752999064378,1e-08,3678.8,3678.7,2.85355159]
[1752999065195,0.45300001,3678.8,3678.7,2.85355159]
[1752999065674,1e-08,3678.8,3678.7,2.85355159]
[1752999065978,1e-08,3678.8,3678.7,4.2647561]
[1752999066141,1e-08,3678.8,3678.7,5.0892561]
[1752999067766,1e-08,3678.8,3678.7,9.2722561]
[1752999068781,1e-08,3678.8,3678.7,16.93225609]
[1752999070192,1e-08,3679.5,3679.3,2.71790829]
[1752999070486,1e-08,3679.5,3679.4,14.30544306]
[1752999070783,1e-08,3679.5,3679.4,14.87604306]
[1752999074850,1e-08,3679.5,3679.4,19.53604305]
[1752999076988,1e-08,3679.5,3679.4,20.08604305]
[1752999077161,1e-08,3679.5,3679.4,19.95084305]
[1752999079784,1e-08,3680.3,3680.2,6.51244362]
[1752999079998,1e-08,3680.3,3680.2,11.34268798]
[1752999080356,1e-08,3680.3,3680.2,11.77808798]
[1752999084193,12.58,3683.0,3680.2,11.77808798]
[1752999084194,0.73,3682.2,3681.0,0.7882]
[1752999084382,0.453,3682.0,3681.9,2.71593009]
[1752999084774,0.73,3682.2,3682.1,2.7158415]
[1752999084970,0.73,3682.5,3682.4,2.71558776]
[1752999085170,1.183,3682.5,3682.4,2.71558776]
[1752999085464,0.25414537,3683.3,3682.4,2.71558776]
[1752999085465,0.453,3682.8,3682.4,2.71562024]
[1752999085663,0.453,3682.7,3682.4,2.71562024]
[1752999085894,0.73,3682.7,3682.5,6.8925465]
[1752999086203,0.73,3682.7,3682.0,0.8142]
[1752999086366,0.73,3682.7,3682.2,2.71576774]
[1752999086367,0.453,3682.6,3682.2,2.71576774]
[1752999086561,1.183,3682.6,3682.0,4.177]
[1752999086766,1.183,3682.6,3682.5,2.7155465]
[1752999086962,3.02974873,3683.5,3682.4,4.177]
[1752999086963,0.73,3682.9,3682.4,4.177]
[1752999087171,0.453,3683.2,3682.5,4.3122]
[1752999087376,0.453,3683.2,3683.1,2.71510412]
[1752999087571,0.73,3683.4,3683.2,2.71497901]
[1752999087797,0.73,3683.4,3683.3,2.71495669]
[1752999088370,1.1903,3683.4,3683.2,2.71502344]
[1752999088565,0.73,3683.6,3683.3,2.71495196]
[1752999088778,0.4603,3683.5,3683.4,2.71487669]
[1752999089099,0.4603,3683.5,3683.4,0.1352]
[1752999094196,0.4603,3683.5,3682.9,4.175]
[1752999094375,0.73,3683.4,3682.9,4.3102]
[1752999094562,0.73,3683.2,3682.5,4.175]
[1752999094769,0.4603,3683.1,3682.5,4.3102]
[1752999095015,0.4603,3683.1,3682.6,2.71541764]
[1752999095568,0.4603,3683.1,3682.6,2.71547276]
[1752999095969,0.4603,3683.1,3682.5,2.85072293]
[1752999096189,0.73,3683.0,3682.5,0.1352]
[1752999096499,0.4603,3682.9,3682.5,0.1352]
[1752999096882,0.4603,3682.8,3682.3,6.88964233]
[1752999097079,0.4603,3682.8,3682.3,7.02484233]
[1752999097394,0.4603,3682.8,3682.4,2.71561853]
[1752999097590,0.73,3683.0,3682.4,2.71562024]
[1752999097788,0.73,3683.0,3682.3,4.174]
[1752999097789,0.73,3683.0,3682.5,0.1352]
[1752999097998,0.73,3683.0,3682.8,2.71531749]
[1752999098197,0.73,3683.3,3682.9,2.85040734]
[1752999098376,0.73,3683.3,3682.9,0.1352]
[1752999098577,0.73,3683.3,3683.0,2.71512025]
[1752999098909,0.73,3683.3,3683.1,2.71509957]
[1752999099214,0.002,3683.5,3683.3,2.71494684]
[1752999099528,0.002,3683.5,3683.2,0.1352]
[1752999100037,0.002,3683.5,3683.2,2.85022982]
[1752999100177,0.002,3683.5,3683.2,0.1352]
[1752999100382,0.002,3683.5,3683.2,2.85017921]
[1752999100610,0.4623,3683.5,3683.3,2.71494244]
[1752999101430,0.002,3683.5,3683.4,2.71488298]
[1752999101734,0.002,3683.5,3683.3,2.71493906]
[1752999102469,0.002,3683.5,3683.4,2.71488298]
[1752999103475,0.002,3683.5,3683.4,2.85008298]
[1752999106074,0.002,3683.5,3683.4,0.1352]
[1752999106295,0.002,3683.5,3683.4,2.85008298]
[1752999106496,0.002,3683.5,3680.2,1.43364436]
[1752999106497,0.73,3683.3,3680.2,1.43364436]
[1752999106674,0.1352,3681.9,3681.4,0.1352]
[1752999106875,3.90637156,3681.8,3680.6,2.7169161]
[1752999107120,3.44607156,3681.8,3681.1,0.1352]
[1752999107318,0.4603,3681.7,3681.1,0.1352]
[1752999107884,0.73,3681.8,3681.1,2.85177098]
[1752999108086,0.73,3681.8,3681.1,0.1352]
[1752999108291,3.44611927,3681.8,3681.1,0.1352]
[1752999108684,0.73,3681.8,3681.1,0.1352]
[1752999108904,0.73,3681.8,3681.2,2.71646963]
[1752999109103,0.73,3681.8,3681.1,0.1352]
[1752999109104,0.73,3681.8,3681.3,2.7164237]
[1752999109310,0.73,3681.8,3681.1,3.31066561]
[1752999109484,0.73,3681.8,3681.2,2.71650177]
[1752999109678,0.73,3681.8,3681.1,3.31066826]
[1752999109875,0.73,3681.8,3681.2,2.71649741]
[1752999110808,0.73,3681.8,3681.1,0.5941]
[1752999111109,0.73,3681.8,3681.4,2.71630167]
[1752999111314,0.73,3681.8,3681.4,2.71634047]
[1752999111513,0.73,3681.8,3681.1,0.1352]
[1752999111712,0.25268534,3682.1,3681.8,2.71599437]
[1752999111917,0.25268534,3682.0,3681.8,0.1352]
[1752999112120,0.25268534,3681.9,3681.8,2.85126279]
[1752999112613,0.25268534,3682.1,3681.9,2.71595858]
[1752999112795,0.25268534,3682.0,3681.9,2.71595858]
[1752999113123,0.4603,3682.0,3681.1,4.173]
[1752999113292,0.4603,3681.9,3681.4,0.1352]
[1752999113497,0.4603,3681.9,3681.7,2.71613656]
[1752999113498,0.71298534,3681.9,3681.7,2.71613656]
[1752999113701,0.25268534,3681.9,3681.7,2.71613656]
[1752999113900,0.25268534,3681.9,3681.5,2.71621871]
[1752999114100,0.25268534,3681.8,3681.4,2.85154553]
[1752999114301,0.25268534,3681.8,3681.5,2.71628412]
[1752999114496,0.4603,3681.9,3681.5,2.71628412]
[1752999114718,0.25349898,3681.8,3681.5,2.71628412]
[1752999115019,0.25349898,3681.8,3681.6,2.71619413]
[1752999115187,0.71379898,3681.9,3681.6,2.71619413]
[1752999115615,0.4603,3681.9,3681.6,2.71619413]
[1752999116128,0.25349898,3681.9,3681.5,2.71623682]
[1752999116291,0.1352,3682.0,3681.7,2.71609635]
[1752999116487,0.1352,3682.0,3681.5,0.4589]
[1752999116723,0.25349898,3682.1,3681.9,2.71598902]
[1752999117405,0.73,3682.2,3682.0,2.71591526]
[1752999117767,0.38869898,3682.3,3681.7,0.1352]
[1752999118034,0.1352,3682.3,3681.8,2.71601216]
[1752999118327,0.1352,3682.3,3681.8,2.71606136]
[1752999118724,0.1352,3682.3,3682.0,2.71587258]
[1752999119224,0.1352,3682.3,3682.1,2.71581851]
[1752999119529,0.25349898,3682.6,3682.5,2.7155465]
[1752999119701,0.25349898,3683.4,3683.0,2.7151339]
[1752999120019,1.1887,3683.3,3682.2,0.796]
[1752999120211,0.1352,3683.1,3682.6,2.71545166]
[1752999120427,0.1352,3683.1,3682.5,2.71552432]
[1752999120608,0.4587,3683.0,3682.4,0.1352]
[1752999120808,0.4587,3683.0,3682.4,2.85080961]
[1752999121196,0.4587,3683.0,3682.7,2.71538204]
[1752999121397,0.4587,3683.0,3682.6,2.71547206]
[1752999121805,0.4587,3683.0,3682.7,2.71538429]
[1752999122207,0.1352,3683.1,3682.4,0.1352]
[1752999122437,0.1352,3683.1,3682.7,2.71534693]
[1752999122602,0.1352,3683.1,3682.6,2.71545677]
[1752999122947,3.17388485,3683.0,3682.3,2.71564221]
[1752999123156,0.1352,3682.7,3682.1,0.1352]
[1752999123505,0.5939,3682.7,3682.3,2.71567451]
[1752999123737,0.4587,3682.6,3682.3,2.71567451]
[1752999124320,0.1352,3682.7,3682.3,2.71567451]
[1752999124918,0.5939,3682.7,3682.4,2.71561175]
[1752999125616,0.1352,3682.7,3682.3,2.71567429]
[1752999125858,0.4587,3682.6,3682.1,2.85103433]
[1752999126016,0.4587,3682.6,3682.3,2.71566015]
[1752999126221,0.4587,3682.6,3682.1,2.85102503]
[1752999126617,0.1352,3682.7,3682.1,2.85102503]
[1752999126618,0.1352,3682.7,3682.1,2.85103803]
[1752999126844,0.4587,3682.5,3682.1,2.85103803]
[1752999127143,0.1352,3682.7,3682.1,2.85103803]
[1752999127144,0.4587,3682.4,3682.1,2.85103803]
[1752999127552,0.4587,3682.4,3681.7,4.187]
[1752999127553,0.73,3682.2,3681.7,2.7161126]
[1752999127767,0.55,3682.0,3680.6,1.208]
[1752999127971,0.1352,3681.7,3681.0,0.1352]
[1752999128122,0.4587,3681.6,3681.0,0.1352]
[1752999128327,0.73,3681.5,3681.0,0.1352]
[1752999128551,3.44629988,3681.5,3681.0,0.1352]
[1752999128722,0.73,3681.5,3681.0,0.1352]
[1752999128925,0.4587,3681.4,3681.0,0.1352]
[1752999129469,0.4587,3681.3,3681.0,0.1352]
[1752999129967,0.4587,3681.3,3681.0,2.85182523]
[1752999130269,0.4587,3681.3,3681.0,0.1352]
[1752999132047,0.73,3681.5,3681.0,0.1352]
[1752999132253,0.4587,3681.4,3681.0,0.1352]
[1752999132453,0.73,3681.5,3681.1,2.71655908]
[1752999132655,1.1887,3681.5,3681.0,2.85183697]
[1752999132891,1.1887,3681.5,3681.0,0.1352]
[1752999133689,0.4587,3681.4,3681.0,0.1352]
[1752999134256,0.4587,3681.3,3681.0,0.1352]
[1752999134767,0.73,3681.5,3681.0,0.1352]
[1752999134947,0.73,3681.5,3681.0,2.85184633]
[1752999135154,0.73,3681.5,3681.0,0.1352]
[1752999135492,1.1887,3681.5,3681.0,0.1352]
[1752999135667,0.73,3681.5,3681.0,2.8518441]
[1752999135864,4.914,3681.5,3681.1,0.4346]
[1752999136069,4.914,3681.5,3681.0,0.1352]
[1752999136265,4.914,3681.5,3681.0,2.85183817]
[1752999136478,0.73,3681.5,3681.0,2.85183817]
[1752999136701,4.184,3681.5,3681.0,3.28644544]
[1752999137590,4.184,3681.5,3681.0,2.85184544]
[1752999137796,4.183,3681.5,3681.0,2.85184544]
[1752999138095,4.183,3681.5,3681.0,0.1352]
[1752999138295,0.1352,3681.7,3681.1,0.4346]
[1752999138470,4.182,3681.9,3681.4,0.1352]
[1752999138671,4.182,3681.9,3681.4,2.8515091]
[1752999138850,4.182,3681.9,3681.5,3.15088134]
[1752999139558,4.3182,3682.0,3681.6,2.71621026]
[1752999139758,4.3182,3682.0,3681.6,3.15081026]
[1752999139961,3.4458321,3682.2,3681.7,0.4346]
[1752999139962,4.182,3682.1,3681.7,0.4346]
[1752999140299,4.182,3682.1,3681.7,3.28586671]
[1752999140993,4.182,3682.1,3681.8,2.71606235]
[1752999141196,4.182,3682.1,3681.7,3.28591577]
[1752999141360,3.17467267,3682.0,3681.3,2.71641679]
[1752999141560,3.30981671,3682.0,3681.4,0.1352]
[1752999142766,0.1352,3682.0,3681.4,0.1352]
[1752999143097,0.1352,3681.8,3681.1,0.1362]
[1752999143260,0.4587,3681.7,3681.1,0.1362]
[1752999144304,0.1352,3681.8,3681.1,0.61148]
[1752999144486,4.3142,3681.8,3681.2,2.71645401]
[1752999144795,4.3142,3681.8,3681.3,2.7164308]
[1752999145000,0.1352,3681.8,3681.5,2.71628412]
[1752999145207,4.181,3682.0,3681.6,2.85139772]
[1752999145595,4.181,3682.0,3681.6,0.1352]
[1752999145777,3.751,3682.0,3681.7,2.71613553]
[1752999146810,3.751,3682.0,3681.6,2.85138406]
[1752999147265,3.751,3682.0,3681.7,2.71613465]
[1752999147916,4.179,3682.0,3681.8,3.1830598]
[1752999148119,4.179,3682.0,3681.8,0.467]
[1752999148310,4.179,3682.0,3681.8,3.18303993]
[1752999148818,4.179,3682.0,3681.7,2.7161129]
[1752999149723,4.179,3682.0,3681.8,2.716055]
[1752999149898,4.178,3682.0,3681.8,2.716055]
[1752999150443,4.178,3682.0,3681.9,2.71598902]
[1752999150743,0.1352,3682.2,3681.6,3.31840854]
[1752999150950,0.1352,3682.2,3681.8,2.71604824]
[1752999151105,4.176,3682.1,3681.8,2.71604824]
[1752999151756,4.176,3682.1,3681.9,2.71598531]
[1752999152206,0.1352,3682.2,3681.9,2.71598531]
[1752999152403,0.1352,3682.2,3681.8,2.71606279]
[1752999152619,4.175,3682.1,3681.8,2.71600355]
[1752999153044,4.175,3682.1,3681.9,3.18292271]
[1752999153498,0.1352,3682.2,3681.9,3.18292271]
[1752999153702,4.174,3682.1,3681.9,3.18292271]
[1752999153905,4.174,3682.1,3681.9,0.467]
[1752999154137,4.174,3682.1,3681.8,2.716053]
[1752999154343,4.174,3682.1,3681.9,2.71598621]
[1752999154520,4.174,3682.1,3681.8,3.1830436]
[1752999154844,4.174,3682.1,3681.9,2.71594639]
[1752999155029,4.174,3682.1,3681.8,3.18304097]
[1752999156865,4.174,3682.1,3681.9,2.71597563]
[1752999157834,0.1352,3682.2,3681.9,2.71597563]
[1752999158154,4.174,3682.1,3681.9,3.18297563]
[1752999158358,4.174,3682.2,3682.0,2.71591057]
[1752999158554,4.174,3682.2,3681.9,2.71597372]
[1752999158960,4.174,3682.2,3682.0,2.71590649]
[1752999159172,4.174,3682.2,3681.9,2.71596296]
[1752999159869,0.1352,3682.4,3681.9,2.71596296]
[1752999160069,4.174,3682.1,3681.9,2.71596296]
[1752999160435,4.174,3682.1,3682.0,2.71591526]
[1752999160969,4.174,3682.1,3681.9,2.71597468]
[1752999161157,6.88988759,3682.1,3681.4,3.4857119]
[1752999161473,0.4708,3682.0,3681.6,0.1352]
[1752999161847,0.4708,3681.9,3681.6,0.1352]
[1752999162062,0.4708,3681.8,3681.3,2.71640141]
[1752999162261,1.2008,3681.8,3681.3,0.1352]
[1752999162586,0.1352,3681.9,3681.5,2.71627433]
[1752999162935,0.1352,3681.9,3681.5,0.467]
[1752999163873,0.1352,3681.9,3681.4,2.71633862]
[1752999164269,0.1352,3681.9,3681.4,3.18333862]
[1752999164671,0.1352,3681.9,3681.3,2.85161677]
[1752999164843,0.1352,3681.9,3681.4,2.71634723]
[1752999165543,0.1352,3681.9,3681.5,2.71628412]
[1752999166639,0.1352,3681.9,3681.6,0.467]
[1752999166979,4.3092,3681.9,3681.7,0.467]
[1752999167178,0.732,3682.3,3681.9,2.71594836]
[1752999167338,4.174,3682.2,3682.0,2.71589033]
[1752999167542,4.174,3682.2,3682.0,3.18289033]
[1752999168973,4.174,3682.2,3682.0,0.467]
[1752999169178,4.174,3682.2,3681.8,2.71605138]
[1752999169347,4.174,3682.1,3681.9,3.18297692]
[1752999169550,0.002,3682.3,3681.9,0.467]
[1752999169776,4.174,3682.2,3681.7,3.6787638]
[1752999169944,4.174,3682.2,3682.0,0.467]
[1752999170487,4.174,3682.2,3681.7,4.14581595]
[1752999171293,4.174,3682.2,3681.7,3.67881595]
[1752999171493,4.174,3682.2,3681.8,0.467]
[1752999171794,7.36061643,3682.2,3681.7,0.1352]
[1752999172091,4.6448,3682.2,3681.7,0.1352]
[1752999172461,0.4708,3682.1,3681.7,0.1352]
[1752999173489,4.174,3682.0,3681.7,2.85132378]
[1752999173798,0.002,3682.3,3681.7,0.1352]
[1752999173972,4.174,3682.0,3681.8,3.18306279]
[1752999174172,4.174,3682.0,3681.9,3.18298902]
[1752999174482,4.174,3682.0,3681.9,0.467]
[1752999174874,4.174,3682.0,3681.9,3.18298902]
[1752999175395,0.002,3682.3,3681.9,3.18298902]
[1752999175698,4.174,3682.0,3681.9,3.18298902]
[1752999177393,4.174,3682.1,3681.9,0.467]
[1752999177894,4.173,3682.1,3681.9,3.18296056]
[1752999178062,4.173,3682.1,3682.0,2.71591526]
[1752999178676,4.173,3682.1,3681.9,3.18296134]
[1752999178964,4.173,3682.1,3682.0,2.71591526]
[1752999179182,0.002,3682.3,3682.1,2.71583074]
[1752999179376,4.173,3682.2,3682.1,2.71583074]
[1752999179890,0.002,3682.3,3682.2,2.71576774]
[1752999180093,4.175,3682.3,3682.2,2.71576774]
[1752999180681,4.175,3682.3,3682.1,3.18012729]
[1752999181312,0.002,3682.3,3682.0,0.1352]
[1752999181812,4.173,3682.2,3682.0,0.1352]
[1752999182109,4.173,3682.2,3682.1,2.7158415]
[1752999183314,4.173,3682.2,3682.0,2.851109]
[1752999183885,4.175,3682.2,3682.0,0.1352]
[1752999184197,4.175,3682.2,3681.6,0.001]
[1752999184198,4.01934414,3682.1,3681.6,0.001]
[1752999184925,2.71597522,3682.0,3681.6,0.001]
[1752999185222,0.4383,3682.0,3681.6,0.001]
[1752999188813,0.4383,3682.0,3681.6,2.71720011]
[1752999189122,0.4383,3681.9,3681.6,0.001]
[1752999189287,0.8652,3682.1,3681.6,0.001]
[1752999189488,1.3035,3682.1,3681.6,0.001]
[1752999190513,4.01936073,3682.1,3681.6,0.001]
[1752999190721,3.15421753,3682.0,3681.6,0.001]
[1752999191217,2.7160861,3681.8,3681.6,0.001]
[1752999191431,6.88913656,3681.7,3681.6,0.001]
[1752999191613,7.32743656,3681.7,3681.6,0.001]
[1752999192205,4.6113,3681.7,3681.6,0.001]
[1752999192788,4.173,3681.7,3681.6,0.001]
[1752999194914,4.172,3681.7,3681.6,0.001]
[1752999195898,4.173,3681.7,3681.6,0.001]
[1752999197016,4.6113,3681.7,3681.6,0.001]
[1752999197220,5.3413,3681.7,3681.6,0.001]
[1752999197416,8.05743656,3681.7,3681.6,0.001]
[1752999199805,8.05643656,3681.7,3681.6,0.001]
[1752999204130,3.88443656,3681.7,3681.6,0.001]
[1752999204450,8.05643656,3681.7,3681.6,0.001]
[1752999204661,1.1683,3681.7,3681.6,0.001]
[1752999204805,6.88813656,3681.7,3681.6,0.001]
[1752999205519,7.32643656,3681.7,3681.6,0.001]
[1752999207245,0.732,3682.0,3681.6,0.001]
[1752999207545,0.1352,3681.7,3681.6,0.001]
[1752999207730,2.85133656,3681.7,3681.6,0.001]
[1752999208533,3.30663656,3681.7,3681.6,0.001]
[1752999208741,0.5905,3681.7,3681.6,0.001]
[1752999209139,0.1352,3681.7,3681.6,0.001]
[1752999209516,4.3072,3681.7,3681.6,0.001]
[1752999209744,4.7625,3681.7,3681.6,0.001]
[1752999211044,0.1352,3681.7,3681.6,0.001]
[1752999211236,4.3072,3681.7,3681.6,0.001]
[1752999212362,0.1352,3681.7,3681.6,0.001]
[1752999212537,4.3062,3681.7,3681.6,0.001]
[1752999219065,8.20763656,3681.7,3681.6,0.001]
[1752999221243,11.75763656,3681.7,3681.6,0.001]
[1752999221442,42.0121199,3681.7,3681.6,0.001]
[1752999221674,42.01212143,3681.7,3681.6,0.001]
[1752999221848,12.01212143,3681.7,3681.6,0.001]
[1752999222049,42.01212143,3681.7,3681.6,0.001]
[1752999224488,42.01212143,3681.7,3681.6,1e-08]
[1752999224671,42.01190692,3681.7,3681.6,1e-08]
[1752999226406,12.01090692,3681.7,3681.6,1e-08]
[1752999227860,4.55947036,3681.7,3681.6,1e-08]
[1752999228396,4.3052,3681.7,3681.6,1e-08]
[1752999229368,7.02133656,3681.7,3681.6,1e-08]
[1752999230496,4.3052,3681.7,3681.6,1e-08]
[1752999232558,4.3052,3681.7,3681.6,0.45670001]
[1752999232979,4.17,3681.7,3681.6,1.23740001]
[1752999233184,0.1352,3681.9,3681.6,1.23740001]
[1752999233395,4.17,3681.8,3681.7,0.4567]
[1752999233763,4.17,3681.8,3681.7,3.17283656]
[1752999233976,0.1352,3681.9,3681.8,2.71606279]
[1752999234176,4.3052,3681.9,3681.8,2.71606279]
[1752999234395,4.3052,3681.9,3681.8,3.17276279]
[1752999234578,0.1352,3681.9,3681.8,3.17276279]
[1752999234787,4.3052,3681.9,3681.8,3.17276279]
[1752999235175,0.1352,3681.9,3681.8,3.17276279]
[1752999235379,0.002,3682.0,3681.9,2.71598902]
[1752999235582,4.171,3682.0,3681.9,0.4567]
[1752999236105,4.171,3682.0,3681.9,3.17268902]
[1752999236286,4.171,3682.0,3681.9,3.30788902]
[1752999237468,4.171,3682.0,3681.9,0.5919]
[1752999237774,4.171,3682.0,3681.6,0.78070001]
[1752999237967,0.1352,3681.9,3681.6,1e-08]
[1752999238166,2.85133656,3681.7,3681.6,1e-08]
[1752999238366,7.02033656,3681.7,3681.6,1e-08]
[1752999238703,7.47403656,3681.7,3681.6,1e-08]
[1752999239478,4.3042,3681.7,3681.6,1e-08]
[1752999240782,4.3042,3681.7,3681.6,0.46640001]
[1752999241110,4.3042,3681.7,3681.6,1e-08]
[1752999243408,7.57033656,3681.7,3681.6,1e-08]
[1752999243577,8.02403656,3681.7,3681.6,1e-08]
[1752999247109,8.75403656,3681.7,3681.6,1e-08]
[1752999250728,8.75303656,3681.7,3681.6,1e-08]
[1752999251560,4.58503656,3681.7,3681.6,1e-08]
[1752999251839,8.75303656,3681.7,3681.6,1e-08]
[1752999253326,1.4152,3681.7,3681.6,1e-08]
[1752999253528,4.3032,3681.7,3681.6,1e-08]
[1752999253936,0.1352,3681.7,3681.6,1e-08]
[1752999254142,7.01933656,3681.7,3681.6,1e-08]
[1752999254344,7.47303656,3681.7,3681.6,1e-08]